bitfinex/quotes_BTCUSD_20241020
["timestamp","ask_amount","ask_price","bid_price","bid_amount"]
[1729398334534,0.001654,68186.0,68185.0,0.59339705]
[1729398334766,0.001654,68186.0,68185.0,0.72507701]
[1729398335720,0.001654,68186.0,68185.0,0.7250811]
[1729398336681,0.001654,68188.0,68187.0,0.161655]
[1729398336924,0.001654,68188.0,68187.0,0.49286554]
[1729398358080,0.001654,68188.0,68187.0,0.52219554]
[1729398358295,0.001654,68188.0,68187.0,0.49286554]
[1729398372388,1e-06,68188.0,68187.0,0.49286554]
[1729398380915,0.030672,68195.0,68189.0,0.1712]
[1729398381139,0.001654,68214.0,68207.0,0.3567945]
[1729398381365,0.001654,68214.0,68213.0,0.043]
[1729398381587,0.001654,68214.0,68213.0,0.04304]
[1729398381829,0.001654,68214.0,68213.0,0.06184244]
[1729398382387,0.001654,68214.0,68213.0,0.28730159]
[1729398383061,0.001654,68214.0,68213.0,0.38200159]
[1729398384694,0.001654,68214.0,68213.0,0.42578866]
[1729398385670,0.001654,68214.0,68213.0,0.38200159]
[1729398385911,0.001654,68214.0,68213.0,0.40350931]
[1729398391123,0.001654,68214.0,68213.0,0.32700931]
[1729398391595,0.001654,68214.0,68213.0,0.32200931]
[1729398403934,0.09628751,68223.0,68222.0,0.2240945]
[1729398404147,0.09628751,68223.0,68222.0,0.39184296]
[1729398404364,0.001654,68229.0,68222.0,0.39184296]
[1729398405222,0.001654,68229.0,68223.0,0.17695915]
[1729398405440,0.001654,68229.0,68223.0,0.17699915]
[1729398405870,0.001654,68229.0,68223.0,0.19574846]
[1729398407962,0.001654,68229.0,68223.0,0.20574846]
[1729398408610,0.001654,68229.0,68223.0,0.2274372]
[1729398427985,0.001654,68229.0,68223.0,0.2174372]
[1729398428223,0.001654,68229.0,68223.0,0.2274372]
[1729398430883,0.001654,68229.0,68223.0,0.2174372]
[1729398431090,0.001654,68229.0,68223.0,0.2274372]
[1729398435043,0.001654,68229.0,68223.0,0.3213372]
[1729398440456,0.001654,68229.0,68223.0,0.3986372]
[1729398440684,0.001654,68229.0,68223.0,0.3047372]
[1729398440904,0.001654,68229.0,68225.0,0.023]
[1729398441117,0.001654,68229.0,68228.0,0.0939]
[1729398441348,0.001654,68229.0,68228.0,0.26589915]
[1729398441611,0.001654,68229.0,68228.0,0.28462]
[1729398444672,0.001654,68229.0,68228.0,0.28962]
[1729398446953,0.001654,68229.0,68228.0,0.29962]
[1729398448038,0.001654,68229.0,68228.0,0.34337913]
[1729398448466,0.001654,68229.0,68228.0,0.29962]
[1729398448674,0.001654,68229.0,68228.0,0.34337913]
[1729398449499,0.001654,68229.0,68228.0,0.37692]
[1729398451168,0.001654,68229.0,68228.0,0.42067913]
[1729398451375,0.001654,68229.0,68228.0,0.37692]
[1729398451585,0.001654,68229.0,68228.0,0.42066681]
[1729398452241,0.001654,68237.0,68236.0,0.3527945]
[1729398452470,0.001654,68237.0,68236.0,0.50179365]
[1729398452691,0.001654,68237.0,68236.0,0.60018915]
[1729398455848,0.001654,68237.0,68236.0,0.62124091]
[1729398456508,0.001654,68238.0,68236.0,0.62124091]
[1729398456509,1e-06,68238.0,68237.0,0.2034]
[1729398456724,1e-06,68238.0,68237.0,0.36239915]
[1729398456934,1e-06,68238.0,68237.0,0.38107277]
[1729398463526,1e-06,68238.0,68237.0,0.38307277]
[1729398465387,1e-06,68238.0,68237.0,0.42672088]
[1729398465600,1e-06,68238.0,68237.0,0.38307277]
[1729398466545,1e-06,68238.0,68237.0,0.39307277]
[1729398466772,1e-06,68238.0,68237.0,0.43669157]
[1729398466988,1e-06,68238.0,68237.0,0.43469157]
[1729398467209,1e-06,68238.0,68237.0,0.39107277]
[1729398468542,1e-06,68238.0,68237.0,0.43466956]
[1729398469525,1e-06,68238.0,68237.0,0.43666956]
[1729398470198,1e-06,68238.0,68237.0,0.43466956]
[1729398471557,1e-06,68238.0,68237.0,0.43465766]
[1729398472038,1e-06,68238.0,68237.0,0.39107277]
[1729398472258,1e-06,68238.0,68237.0,0.50191739]
[1729398472485,1e-06,68238.0,68237.0,0.50185295]
[1729398472761,0.001654,68254.0,68252.0,0.005]
[1729398472995,0.001654,68254.0,68252.0,0.26979915]
[1729398473219,0.001654,68254.0,68252.0,0.29843233]
[1729398475408,0.001654,68254.0,68252.0,0.32028798]
[1729398477263,0.001654,68254.0,68252.0,0.22748798]
[1729398478277,0.001654,68254.0,68252.0,0.21748798]
[1729398478539,0.001654,68254.0,68252.0,0.22748798]
[1729398479741,0.001654,68254.0,68252.0,0.20448798]
[1729398479946,0.001654,68254.0,68252.0,0.19948798]
[1729398480353,0.001654,68254.0,68252.0,0.19448798]
[1729398480530,0.001654,68254.0,68252.0,0.19948798]
[1729398480740,0.001654,68254.0,68252.0,0.18948798]
[1729398480942,0.134354,68253.0,68252.0,0.01867318]
[1729398484641,0.14805779,68253.0,68252.0,0.01867318]
[1729398486127,0.134354,68253.0,68252.0,0.01867318]
[1729398486585,0.14805894,68253.0,68252.0,0.01867318]
[1729398486971,0.134354,68253.0,68252.0,0.01867318]
[1729398487536,0.077054,68253.0,68252.0,0.01867318]
[1729398492220,0.001654,68253.0,68252.0,0.01867318]
[1729398492451,0.001654,68253.0,68252.0,0.16763233]
[1729398492686,0.001654,68253.0,68252.0,0.19563233]
[1729398493320,0.001654,68253.0,68252.0,0.20563233]
[1729398493543,0.00026222,68257.0,68256.0,0.2240945]
[1729398493744,0.00026222,68257.0,68256.0,0.2241345]
[1729398493947,0.00026222,68257.0,68256.0,0.24276158]
[1729398503854,0.00026222,68257.0,68256.0,0.33846158]
[1729398504950,0.00026222,68257.0,68256.0,0.48742073]
[1729398513963,0.00026222,68257.0,68256.0,0.48824773]
[1729398544096,0.00026222,68257.0,68256.0,0.59824773]
[1729398544511,5.5e-07,68268.0,68267.0,0.043]
[1729398544725,0.13157491,68282.0,68267.0,0.043]
[1729398544726,0.22022551,68279.0,68278.0,0.028]
[1729398544943,0.22022551,68279.0,68278.0,0.17699915]
[1729398545145,0.06589278,68289.0,68279.0,0.023]
[1729398545411,0.06589278,68289.0,68279.0,0.26499915]
[1729398545556,0.14994678,68292.0,68279.0,0.26499915]
[1729398545755,0.22022551,68286.0,68279.0,0.11163227]
[1729398545971,0.29637678,68292.0,68279.0,0.01863227]
[1729398545972,0.06589278,68290.0,68279.0,0.01863227]
[1729398546171,0.06589278,68289.0,68279.0,4e-05]
[1729398546385,0.06589278,68290.0,68279.0,0.02158717]
[1729398546595,0.06589278,68291.0,68279.0,0.01863227]
[1729398546823,0.06589278,68291.0,68279.0,4e-05]
[1729398547025,0.06589278,68290.0,68279.0,4e-05]
[1729398547231,0.06589278,68291.0,68279.0,4e-05]
[1729398547648,0.14994678,68292.0,68279.0,4e-05]
[1729398548071,0.14981454,68292.0,68279.0,4e-05]
[1729398548819,0.084054,68292.0,68279.0,4e-05]
[1729398549049,0.14981454,68292.0,68279.0,4e-05]
[1729398549495,0.084054,68292.0,68279.0,4e-05]
[1729398565673,0.0573,68290.0,68279.0,4e-05]
[1729398567628,0.0808,68284.0,68279.0,4e-05]
[1729398568580,0.0573,68282.0,68279.0,4e-05]
[1729398568794,2.0808,68280.0,68279.0,4e-05]
[1729398569028,2.0808,68280.0,68279.0,0.01861385]
[1729398570514,2.0808,68280.0,68279.0,4e-05]
[1729398576514,2.081627,68280.0,68279.0,4e-05]
[1729398584463,2.12542451,68280.0,68279.0,4e-05]
[1729398585122,2.081627,68280.0,68279.0,4e-05]
[1729398585329,2.12542451,68280.0,68279.0,4e-05]
[1729398588501,2.081627,68280.0,68279.0,4e-05]
[1729398588706,2.1254739,68280.0,68279.0,4e-05]
[1729398589601,2.081627,68280.0,68279.0,4e-05]
[1729398595101,2.12548038,68280.0,68279.0,4e-05]
[1729398595330,2.081627,68280.0,68279.0,4e-05]
[1729398596036,2.000827,68280.0,68279.0,4e-05]
[1729398596270,2.04468071,68280.0,68279.0,4e-05]
[1729398596500,2.000827,68280.0,68279.0,4e-05]
[1729398596944,2.04468134,68280.0,68279.0,4e-05]
[1729398597603,2.000827,68280.0,68279.0,4e-05]
[1729398601947,2.000827,68280.0,68279.0,0.09604]
[1729398602636,2.04468764,68280.0,68279.0,0.09604]
[1729398604924,2.0446944,68280.0,68279.0,0.09604]
[1729398606261,2.0446944,68280.0,68279.0,0.1172563]
[1729398606500,2.000827,68280.0,68279.0,0.1172563]
[1729398608702,2.06662811,68280.0,68279.0,0.09604]
[1729398609828,2.06665741,68280.0,68279.0,0.09604]
[1729398611617,2.000827,68280.0,68279.0,0.09604]
[1729398612524,2.1628772,68280.0,68279.0,0.09604]
[1729398612749,2.25065108,68280.0,68279.0,0.09604]
[1729398613656,2.1628772,68280.0,68279.0,0.09604]
[1729398615312,2.1628772,68280.0,68279.0,4e-05]
[1729398616099,2.27259455,68280.0,68279.0,4e-05]
[1729398624416,2.27277605,68280.0,68279.0,4e-05]
[1729398629345,2.27277992,68280.0,68279.0,4e-05]
[1729398630469,2.27277992,68280.0,68279.0,0.09844]
[1729398630683,2.16296928,68280.0,68279.0,0.09844]
[1729398633089,2.27277992,68280.0,68279.0,0.09844]
[1729398634176,2.27278397,68280.0,68279.0,0.09844]
[1729398636616,2.16297169,68280.0,68279.0,0.09844]
[1729398638405,2.27278397,68280.0,68279.0,0.09844]
[1729398644003,2.1629851,68280.0,68279.0,0.09844]
[1729398647672,2.25083915,68280.0,68279.0,0.09844]
[1729398647893,2.1629851,68280.0,68279.0,0.09844]
[1729398648612,2.25083928,68280.0,68279.0,0.09844]
[1729398648868,2.25083387,68280.0,68279.0,0.09844]
[1729398652793,2.27279742,68280.0,68279.0,0.09844]
[1729398652999,2.2508333,68280.0,68279.0,0.09844]
[1729398655328,2.06671698,68280.0,68279.0,0.03840091]
[1729398657159,2.06671698,68280.0,68279.0,0.05694926]
[1729398657377,2.06671698,68280.0,68275.0,0.02191009]
[1729398657601,0.04392666,68278.0,68275.0,0.02191009]
[1729398657828,0.04392666,68278.0,68274.0,0.2240945]
[1729398658260,0.04392666,68278.0,68275.0,0.0928]
[1729398658514,0.0439266,68278.0,68275.0,0.0928]
[1729398661842,0.04392647,68278.0,68275.0,0.0928]
[1729398662057,0.04392647,68279.0,68275.0,0.0928]
[1729398664803,0.04392647,68279.0,68275.0,0.094454]
[1729398665286,0.04392647,68278.0,68275.0,0.094454]
[1729398666649,0.04392734,68278.0,68275.0,0.094454]
[1729398668715,0.04392734,68278.0,68277.0,0.0908]
[1729398674680,0.04392951,68278.0,68277.0,0.0908]
[1729398674890,0.04392951,68278.0,68277.0,0.1709]
[1729398677262,0.04392951,68279.0,68278.0,0.0908]
[1729398680590,0.04475651,68279.0,68278.0,0.0908]
[1729398685692,0.000827,68279.0,68278.0,0.0908]
[1729398688358,0.000827,68279.0,68277.0,0.001654]
[1729398688578,0.04392484,68278.0,68277.0,0.001654]
[1729398690575,0.04392494,68278.0,68277.0,0.001654]
[1729398693012,2.06671441,68280.0,68277.0,0.32751315]
[1729398693244,2.06671441,68280.0,68279.0,0.19195915]
[1729398693245,0.32077784,68280.0,68279.0,0.19195915]
[1729398693476,0.22022551,68296.0,68291.0,0.3626945]
[1729398693702,0.22022551,68296.0,68291.0,0.58795365]
[1729398693935,0.22022551,68303.0,68291.0,0.60644963]
[1729398694881,0.22022551,68303.0,68291.0,0.59644963]
[1729398695113,0.22022551,68303.0,68291.0,0.60644963]
[1729398705103,0.22022551,68303.0,68291.0,0.47784963]
[1729398705325,0.51304151,68303.0,68291.0,0.24259048]
[1729398705542,0.146409,68302.0,68291.0,0.24259048]
[1729398705760,0.22022551,68303.0,68291.0,0.24259048]
[1729398705761,0.36663151,68303.0,68291.0,0.24259048]
[1729398705952,0.22022551,68303.0,68291.0,0.24259048]
[1729398706621,0.22022551,68303.0,68291.0,0.26559048]
[1729398714439,0.0951,68298.0,68291.0,0.26559048]
[1729398722043,0.0817,68297.0,68291.0,0.24259048]
[1729398723404,0.228119,68297.0,68291.0,0.24259048]
[1729398723636,0.0817,68297.0,68291.0,0.24259048]
[1729398749764,0.0951,68298.0,68291.0,0.24259048]
[1729398750235,0.13889182,68298.0,68291.0,0.24259048]
[1729398751406,0.04379182,68297.0,68291.0,0.24259048]
[1729398751623,0.13889182,68298.0,68291.0,0.24259048]
[1729398752082,0.04379182,68297.0,68291.0,0.24259048]
[1729398753211,0.13889182,68298.0,68291.0,0.24259048]
[1729398753719,0.13897253,68298.0,68291.0,0.24259048]
[1729398753981,0.04387253,68297.0,68291.0,0.24259048]
[1729398754199,0.13897253,68298.0,68291.0,0.24259048]
[1729398755816,0.04387253,68297.0,68291.0,0.24259048]
[1729398756045,0.13897253,68298.0,68291.0,0.24259048]
[1729398756256,0.04387253,68297.0,68291.0,0.24259048]
[1729398756488,0.04387676,68297.0,68291.0,0.24259048]
[1729398759308,0.04387676,68296.0,68291.0,0.24259048]
[1729398761085,0.04387676,68297.0,68291.0,0.24259048]
[1729398765239,0.04387676,68296.0,68291.0,0.24259048]
[1729398767572,0.04387676,68295.0,68291.0,0.24259048]
[1729398768468,0.04387676,68294.0,68291.0,0.24259048]
[1729398770655,0.04387676,68293.0,68291.0,0.24259048]
[1729398770884,0.002,68296.0,68291.0,0.24259048]
[1729398770885,0.04557622,68292.0,68291.0,0.24259048]
[1729398771344,0.04557622,68292.0,68291.0,0.2240945]
[1729398771803,0.001654,68292.0,68291.0,0.24162265]
[1729398774369,0.04557622,68292.0,68291.0,0.24162265]
[1729398775022,0.001654,68292.0,68291.0,0.24162265]
[1729398775469,0.04557622,68292.0,68291.0,0.24162265]
[1729398776119,0.001654,68292.0,68291.0,0.24162265]
[1729398779340,0.04557622,68292.0,68291.0,0.24162265]
[1729398779774,0.001654,68292.0,68291.0,0.24162265]
[1729398782424,0.04557622,68292.0,68291.0,0.24162265]
[1729398782663,0.001654,68292.0,68291.0,0.24162265]
[1729398784285,0.04557622,68292.0,68291.0,0.24162265]
[1729398784500,0.001654,68292.0,68291.0,0.24162265]
[1729398810745,0.001654,68292.0,68291.0,0.2240945]
[1729398811191,0.001654,68292.0,68291.0,0.24161611]
[1729398829964,0.0455721,68292.0,68291.0,0.24161611]
[1729398830580,0.001654,68292.0,68291.0,0.24161611]
[1729398835581,0.001654,68292.0,68291.0,0.33171611]
[1729398839029,0.001654,68292.0,68291.0,0.24161611]
[1729398851179,0.01537968,68292.0,68291.0,0.24161611]
[1729398852076,0.01537966,68292.0,68291.0,0.24161611]
[1729398861509,0.001654,68292.0,68291.0,0.24161611]
[1729398861726,0.01537961,68292.0,68291.0,0.24161611]
[1729398867544,0.05930181,68292.0,68291.0,0.24161611]
[1729398868416,0.23022207,68292.0,68291.0,0.01752161]
[1729398868676,0.32648088,68292.0,68291.0,0.01752161]
[1729398868892,0.002,68291.0,68285.0,0.22022551]
[1729398869108,0.04392477,68288.0,68285.0,0.22022551]
[1729398869322,0.01372561,68287.0,68286.0,0.0175561]
[1729398869825,0.01372561,68287.0,68283.0,0.2257485]
[1729398870036,0.04392477,68288.0,68286.0,0.01754983]
[1729398870250,0.01372262,68287.0,68283.0,0.2257485]
[1729398870461,0.01372262,68286.0,68283.0,0.2257485]
[1729398870668,0.01372262,68285.0,68283.0,0.2257485]
[1729398870881,0.01372262,68284.0,68283.0,0.2257485]
[1729398872387,0.04392477,68289.0,68283.0,0.2257485]
[1729398872594,0.01371861,68288.0,68283.0,0.2257485]
[1729398872823,0.01371735,68287.0,68283.0,0.2257485]
[1729398873037,0.01371735,68286.0,68283.0,0.2257485]
[1729398873258,0.1626765,68285.0,68283.0,0.2257485]
[1729398873468,0.01371735,68284.0,68283.0,0.2257485]
[1729398874632,0.01371735,68284.0,68283.0,0.001654]
[1729398874853,0.01571735,68284.0,68283.0,0.001654]
[1729398875081,0.0816045,68284.0,68283.0,0.001654]
[1729398875295,0.1646765,68284.0,68283.0,0.001654]
[1729398875520,0.3111235,68284.0,68283.0,0.001654]
[1729398875721,0.1646765,68284.0,68283.0,0.001654]
[1729398876129,0.20854361,68284.0,68283.0,0.001654]
[1729398876341,0.1646765,68284.0,68283.0,0.001654]
[1729398876554,0.20854326,68284.0,68283.0,0.001654]
[1729398878144,0.1626765,68284.0,68283.0,0.001654]
[1729398880697,0.1646765,68284.0,68283.0,0.001654]
[1729398881320,0.3111235,68284.0,68283.0,0.001654]
[1729398882003,0.1646765,68284.0,68283.0,0.001654]
[1729398882225,0.3111235,68284.0,68283.0,0.001654]
[1729398883091,0.29740615,68284.0,68283.0,0.001654]
[1729398883332,0.31109953,68284.0,68283.0,0.001654]
[1729398884896,0.41020756,68284.0,68283.0,0.001654]
[1729398885099,0.45407432,68284.0,68283.0,0.001654]
[1729398885305,0.41020756,68284.0,68283.0,0.001654]
[1729398885510,0.45407432,68284.0,68283.0,0.001654]
[1729398886135,0.41020756,68284.0,68283.0,0.001654]
[1729398886772,0.39651418,68284.0,68283.0,0.001654]
[1729398886992,0.41020463,68284.0,68283.0,0.001654]
[1729398887438,0.50940463,68284.0,68283.0,0.001654]
[1729398887698,0.55321665,68284.0,68283.0,0.001654]
[1729398888865,0.63541665,68284.0,68283.0,0.001654]
[1729398889089,0.59160463,68284.0,68283.0,0.001654]
[1729398890244,0.63540211,68284.0,68283.0,0.001654]
[1729398890445,0.63540147,68284.0,68283.0,0.001654]
[1729398891104,0.69317709,68284.0,68283.0,0.001654]
[1729398891322,0.64937961,68284.0,68283.0,0.001654]
[1729398892418,0.59160399,68284.0,68283.0,0.001654]
[1729398893372,0.657284,68284.0,68283.0,0.001654]
[1729398893609,0.59160399,68284.0,68283.0,0.001654]
[1729398894111,0.84086262,68284.0,68283.0,0.001654]
[1729398894957,0.75323857,68284.0,68283.0,0.001654]
[1729398895169,0.84079488,68284.0,68283.0,0.001654]
[1729398895376,0.98564834,68284.0,68283.0,0.001654]
[1729398895816,0.98647534,68284.0,68283.0,0.001654]
[1729398896270,0.89889421,68284.0,68283.0,0.001654]
[1729398898478,0.92189421,68284.0,68283.0,0.001654]
[1729398898894,0.96694341,68284.0,68283.0,0.001654]
[1729398900418,0.148479,68269.0,68268.0,0.22022551]
[1729398900702,0.002,68266.0,68260.0,0.22022551]
[1729398900913,0.40982728,68266.0,68260.0,0.22022551]
[1729398901122,0.40658423,68266.0,68260.0,0.22022551]
[1729398901548,0.55554338,68266.0,68260.0,0.22022551]
[1729398902189,0.55554338,68266.0,68255.0,0.0819]
[1729398902190,0.40658423,68266.0,68255.0,0.0819]
[1729398903686,0.40658423,68266.0,68253.0,0.0926]
[1729398904363,0.50378423,68266.0,68262.0,0.00182]
[1729398906790,0.50378423,68266.0,68253.0,0.0926]
[1729398907232,0.50377048,68266.0,68253.0,0.0926]
[1729398908086,0.50377048,68266.0,68252.0,0.0819]
[1729398909420,0.002,68257.0,68252.0,0.0819]
[1729398909620,0.40777534,68257.0,68256.0,0.01851878]
[1729398909846,0.26127034,68257.0,68256.0,0.000827]
[1729398910942,0.25926605,68257.0,68256.0,0.000827]
[1729398911872,0.25926605,68257.0,68256.0,0.006837]
[1729398912319,0.24759428,68257.0,68256.0,0.006837]
[1729398912551,0.26126718,68257.0,68256.0,0.006837]
[1729398912993,0.40777218,68257.0,68256.0,0.006837]
[1729398914380,0.40577218,68257.0,68256.0,0.006837]
[1729398914857,0.2612697,68257.0,68256.0,0.006837]
[1729398915084,0.4077747,68257.0,68256.0,0.006837]
[1729398915535,0.4057747,68257.0,68256.0,0.006837]
[1729398915744,0.2592697,68257.0,68256.0,0.006837]
[1729398916658,0.4057747,68257.0,68256.0,0.006837]
[1729398916866,0.4077747,68257.0,68256.0,0.006837]
[1729398919711,0.4057747,68257.0,68256.0,0.006837]
[1729398920156,0.4077747,68257.0,68256.0,0.006837]
[1729398921812,0.24559428,68257.0,68256.0,0.006837]
[1729398922020,0.40579495,68257.0,68256.0,0.006837]
[1729398922343,0.25928995,68257.0,68256.0,0.006837]
[1729398923563,0.40579495,68257.0,68256.0,0.006837]
[1729398923793,0.25928995,68257.0,68256.0,0.006837]
[1729398925869,0.25930774,68257.0,68256.0,0.006837]
[1729398930395,0.40581274,68257.0,68256.0,0.006837]
[1729398930646,0.25930774,68257.0,68256.0,0.006837]
[1729398932872,0.24559428,68257.0,68256.0,0.006837]
[1729398933080,0.25932838,68257.0,68256.0,0.006837]
[1729398936868,0.25932827,68257.0,68256.0,0.006837]
[1729398938509,0.40583327,68257.0,68256.0,0.006837]
[1729398938772,0.25932827,68257.0,68256.0,0.006837]
[1729398939204,0.40583327,68257.0,68256.0,0.006837]
[1729398940224,0.44968004,68257.0,68256.0,0.006837]
[1729398940662,0.44968045,68257.0,68256.0,0.006837]
[1729398941209,0.40583368,68257.0,68256.0,0.006837]
[1729398941826,0.40583401,68257.0,68256.0,0.006837]
[1729398942273,0.47160417,68257.0,68256.0,0.006837]
[1729398943257,0.40583401,68257.0,68256.0,0.006837]
[1729398944288,0.65770459,68257.0,68256.0,0.006837]
[1729398944528,0.65570459,68257.0,68256.0,0.006837]
[1729398945079,0.56801104,68257.0,68256.0,0.006837]
[1729398945504,0.50939811,68257.0,68256.0,0.006837]
[1729398945705,0.56801104,68257.0,68256.0,0.006837]
[1729398946743,0.65590423,68257.0,68256.0,0.006837]
[1729398947146,0.56801104,68257.0,68256.0,0.006837]
[1729398947426,0.42150604,68257.0,68256.0,0.006837]
[1729398947844,0.56801104,68257.0,68256.0,0.006837]
[1729398948039,0.56801171,68257.0,68256.0,0.006837]
[1729398951739,0.55427571,68257.0,68256.0,0.006837]
[1729398951943,0.56801143,68257.0,68256.0,0.006837]
[1729398952291,0.5680677,68257.0,68256.0,0.006837]
[1729398952496,0.4215627,68257.0,68256.0,0.006837]
[1729398953100,0.5094597,68257.0,68256.0,0.006837]
[1729398953522,0.6559647,68257.0,68256.0,0.006837]
[1729398954793,0.5094597,68257.0,68256.0,0.006837]
[1729398955332,0.6559647,68257.0,68256.0,0.006837]
[1729398956591,0.65596426,68257.0,68256.0,0.006837]
[1729398957306,0.65596612,68257.0,68256.0,0.006837]
[1729398957966,0.50946112,68257.0,68256.0,0.006837]
[1729398958382,0.56806814,68257.0,68256.0,0.006837]
[1729398959428,0.64223397,68257.0,68256.0,0.006837]
[1729398959636,0.65596918,68257.0,68256.0,0.006837]
[1729398960461,0.56806807,68257.0,68256.0,0.006837]
[1729398961092,0.5680783,68257.0,68256.0,0.006837]
[1729398961561,0.68093826,68257.0,68256.0,0.006837]
[1729398961792,0.80655289,68257.0,68256.0,0.006837]
[1729398962000,0.80455289,68257.0,68256.0,0.006837]
[1729398962640,0.67795772,68257.0,68256.0,0.006837]
[1729398963069,0.67995772,68257.0,68256.0,0.006837]
[1729398963278,0.67795772,68257.0,68256.0,0.006837]
[1729398964780,0.67995772,68257.0,68256.0,0.006837]
[1729398965432,0.67995649,68257.0,68256.0,0.006837]
[1729398966276,0.67795649,68257.0,68256.0,0.006837]
[1729398968203,0.53145149,68257.0,68256.0,0.006837]
[1729398968618,0.67795649,68257.0,68256.0,0.006837]
[1729398968825,0.53145149,68257.0,68256.0,0.006837]
[1729398969039,0.67795649,68257.0,68256.0,0.006837]
[1729398969289,0.67795554,68257.0,68256.0,0.006837]
[1729398969713,0.67795543,68257.0,68256.0,0.006837]
[1729398970126,0.67793503,68257.0,68256.0,0.006837]
[1729398970343,0.4347949,68257.0,68256.0,0.006837]
[1729398970612,0.41281385,68257.0,68256.0,0.006837]
[1729398970848,0.41281415,68257.0,68256.0,0.006837]
[1729398972205,0.32491931,68257.0,68256.0,0.006837]
[1729398972406,0.45769138,68257.0,68256.0,0.0249928]
[1729398972613,0.47142397,68257.0,68256.0,0.006837]
[1729398973025,0.4128134,68257.0,68256.0,0.006837]
[1729398973199,0.39908081,68257.0,68256.0,0.006837]
[1729398973421,0.32491889,68257.0,68256.0,0.006837]
[1729398973840,0.47142389,68257.0,68256.0,0.006837]
[1729398974006,0.41281362,68257.0,68256.0,0.006837]
[1729398974215,0.32491889,68257.0,68256.0,0.006837]
[1729398974801,0.47142389,68257.0,68256.0,0.006837]
[1729398974985,0.32491922,68257.0,68256.0,0.006837]
[1729398975861,0.41281353,68257.0,68256.0,0.006837]
[1729398976060,0.55931853,68257.0,68256.0,0.006837]
[1729398976267,0.47142422,68257.0,68256.0,0.006837]
[1729398976495,0.55931841,68257.0,68256.0,0.006837]
[1729398977172,0.47142422,68257.0,68256.0,0.006837]
[1729398977392,0.55931857,68257.0,68256.0,0.006837]
[1729398977615,0.55931855,68257.0,68256.0,0.006837]
[1729398977941,0.47142422,68257.0,68256.0,0.006837]
[1729398978779,0.32491922,68257.0,68256.0,0.006837]
[1729398979364,0.41281349,68257.0,68256.0,0.006837]
[1729398979783,0.55931849,68257.0,68256.0,0.006837]
[1729398979981,0.47142422,68257.0,68256.0,0.006837]
[1729398981358,0.45769171,68257.0,68256.0,0.02499799]
[1729398981610,0.47142432,68257.0,68256.0,0.006837]
[1729398981810,0.47142432,68257.0,68256.0,0.02499799]
[1729398981922,0.47142432,68257.0,68256.0,0.006837]
[1729398982121,0.47142432,68257.0,68256.0,0.02499797]
[1729398982342,0.47142432,68257.0,68256.0,0.006837]
[1729398983002,0.47142432,68257.0,68256.0,0.02499786]
[1729398984660,0.47142492,68257.0,68256.0,0.02499786]
[1729398985631,0.47142525,68257.0,68256.0,0.02499786]
[1729398989849,0.45769231,68257.0,68256.0,0.02499786]
[1729398990167,0.47142565,68257.0,68256.0,0.02499786]
[1729398992514,0.55932054,68257.0,68256.0,0.02499786]
[1729398992767,0.47142565,68257.0,68256.0,0.02499786]
[1729398993148,0.4714254,68257.0,68256.0,0.02499786]
[1729398993319,0.58129144,68257.0,68256.0,0.02499786]
[1729398993528,0.58129144,68257.0,68256.0,0.006837]
[1729398994417,0.5812914,68257.0,68256.0,0.006837]
[1729398994631,0.47142536,68257.0,68256.0,0.006837]
[1729398998054,0.47142636,68257.0,68256.0,0.006837]
[1729398999074,0.47142635,68257.0,68256.0,0.006837]
[1729399000126,0.32492135,68257.0,68256.0,0.006837]
[1729399000556,0.43478811,68257.0,68256.0,0.006837]
[1729399000780,0.58129311,68257.0,68256.0,0.02495887]
[1729399001032,0.47142635,68257.0,68256.0,0.006837]
[1729399001907,0.32492135,68257.0,68256.0,0.006837]
[1729399002337,0.47142669,68257.0,68256.0,0.006837]
[1729399003879,0.47142894,68257.0,68256.0,0.006837]
[1729399006889,0.47142906,68257.0,68256.0,0.006837]
[1729399010335,0.4576943,68257.0,68256.0,0.006837]
[1729399010560,0.47142922,68257.0,68256.0,0.006837]
[1729399012985,0.32492422,68257.0,68256.0,0.006837]
[1729399013202,0.47142922,68257.0,68256.0,0.006837]
[1729399013627,0.47143708,68257.0,68256.0,0.006837]
[1729399014656,0.32493208,68257.0,68256.0,0.083537]
[1729399014860,0.32493208,68257.0,68256.0,0.10166215]
[1729399015071,0.41282913,68257.0,68256.0,0.10166215]
[1729399016439,0.32493208,68257.0,68256.0,0.10166215]
[1729399017388,0.16269407,68257.0,68256.0,0.10166215]
[1729399018068,0.41278498,68257.0,68256.0,0.10166215]
[1729399018523,0.41276993,68257.0,68256.0,0.10166215]
[1729399018764,0.41276459,68257.0,68256.0,0.10166215]
[1729399019312,0.41276391,68257.0,68256.0,0.10166215]
[1729399020094,0.41276281,68257.0,68256.0,0.10166215]
[1729399021019,0.39903323,68257.0,68256.0,0.10166215]
[1729399021248,0.4127626,68257.0,68256.0,0.10166215]
[1729399021989,0.4127519,68257.0,68256.0,0.10166215]
[1729399022700,0.5592569,68257.0,68256.0,0.02496215]
[1729399022926,0.58122541,68257.0,68256.0,0.006837]
[1729399024194,0.43472041,68257.0,68256.0,0.006837]
[1729399024830,0.43472072,68257.0,68256.0,0.006837]
[1729399025647,0.58122572,68257.0,68256.0,0.006837]
[1729399028759,0.58122571,68257.0,68256.0,0.006837]
[1729399029157,0.43472071,68257.0,68256.0,0.006837]
[1729399030562,0.32487818,68257.0,68256.0,0.006837]
[1729399030778,0.43472344,68257.0,68256.0,0.006837]
[1729399031188,0.58122844,68257.0,68256.0,0.006837]
[1729399032623,0.58122838,68257.0,68256.0,0.006837]
[1729399032853,0.47138475,68257.0,68256.0,0.006837]
[1729399036447,0.47138838,68257.0,68256.0,0.006837]
[1729399036648,0.4347286,68257.0,68256.0,0.006837]
[1729399037059,0.32488338,68257.0,68256.0,0.006837]
[1729399037468,0.4347286,68257.0,68256.0,0.006837]
[1729399037701,0.5812336,68257.0,68256.0,0.006837]
[1729399039843,0.56750399,68257.0,68256.0,0.006837]
[1729399040045,0.58123386,68257.0,68256.0,0.006837]
[1729399040252,0.56750399,68257.0,68256.0,0.006837]
[1729399040454,0.58123388,68257.0,68256.0,0.006837]
[1729399041494,0.58123349,68257.0,68256.0,0.006837]
[1729399043685,0.58123379,68257.0,68256.0,0.006837]
[1729399048796,0.43472879,68257.0,68256.0,0.006837]
[1729399049893,0.32488321,68257.0,68256.0,0.006837]
[1729399050122,0.58123379,68257.0,68256.0,0.006837]